bitfinex/quotes_BTCUSD_20250408
["timestamp","ask_amount","ask_price","bid_price","bid_amount"]
[1744108369789,0.00107451,78961.0,78960.0,0.80497149]
[1744108371091,0.00107451,78961.0,78960.0,0.80597149]
[1744108371290,7.451e-05,78961.0,78960.0,0.80597149]
[1744108371507,7.451e-05,78961.0,78960.0,0.80497149]
[1744108371693,7.451e-05,78961.0,78960.0,0.80597149]
[1744108371893,7.451e-05,78961.0,78960.0,0.80497149]
[1744108372134,7.451e-05,78961.0,78960.0,0.81097149]
[1744108372452,7.451e-05,78961.0,78960.0,0.81597149]
[1744108374080,0.0098247,78977.0,78976.0,0.415903]
[1744108374280,0.0098247,78977.0,78976.0,1.79610249]
[1744108374576,0.26585,78992.0,78986.0,0.253208]
[1744108374766,0.34,78990.0,78987.0,0.14079949]
[1744108374973,0.0099966,78992.0,78991.0,0.02719985]
[1744108375175,0.0099966,78992.0,78991.0,0.29685849]
[1744108375376,0.26583,78998.0,78992.0,0.02719985]
[1744108375377,0.265835,78997.0,78992.0,0.02719985]
[1744108375573,0.012659,78995.0,78994.0,0.01454085]
[1744108375775,0.01278541,78995.0,78994.0,0.14079949]
[1744108376005,0.34012641,78995.0,78994.0,0.14079949]
[1744108376215,0.00012641,78995.0,78994.0,0.14079949]
[1744108376593,0.26596541,78995.0,78994.0,0.14079949]
[1744108376951,0.00012641,78995.0,78994.0,0.14079949]
[1744108377294,0.00012641,78995.0,78994.0,0.15345849]
[1744108377635,0.00012641,78995.0,78994.0,0.30345849]
[1744108378458,0.34012641,78995.0,78994.0,0.29079949]
[1744108380304,0.35278541,78995.0,78994.0,0.29079949]
[1744108381415,0.35278541,78995.0,78994.0,0.12625864]
[1744108382124,0.35278541,78995.0,78994.0,0.14079949]
[1744108386584,0.35278541,78995.0,78991.0,0.1434]
[1744108386585,0.605849,78992.0,78991.0,0.1434]
[1744108387776,0.606849,78992.0,78991.0,0.1434]
[1744108388241,0.605849,78992.0,78991.0,0.1434]
[1744108388475,0.606849,78992.0,78991.0,0.1434]
[1744108388729,0.608849,78992.0,78991.0,0.1434]
[1744108388967,0.606849,78992.0,78991.0,0.1434]
[1744108389192,0.608849,78992.0,78991.0,0.1434]
[1744108390170,0.605883,78982.0,78981.0,0.42894085]
[1744108390386,0.605883,78982.0,78981.0,0.14079949]
[1744108393711,0.34,78982.0,78981.0,0.15044105]
[1744108393845,0.34,78982.0,78981.0,0.41632705]
[1744108394045,0.34,78982.0,78981.0,0.29384105]
[1744108394727,0.352661,78982.0,78981.0,0.29384105]
[1744108398629,0.34,78982.0,78981.0,0.29384105]
[1744108399928,0.352661,78982.0,78981.0,0.29384105]
[1744108402844,0.34,78982.0,78981.0,0.29384105]
[1744108403074,0.34,78982.0,78981.0,0.30650205]
[1744108403478,0.34,78982.0,78981.0,0.35200205]
[1744108404577,0.0098582,78989.0,78988.0,0.415863]
[1744108404813,0.0098582,78989.0,78988.0,1.06536249]
[1744108405068,0.012656,79012.0,78994.0,0.28038285]
[1744108405271,0.34,79008.0,78994.0,0.45214149]
[1744108405465,0.0098538,79016.0,78994.0,0.45214149]
[1744108405668,0.012654,79024.0,78994.0,0.91534149]
[1744108405922,0.253103,79020.0,78994.0,0.95480887]
[1744108406130,0.012655,79018.0,78994.0,0.95480887]
[1744108406324,0.34,79015.0,78994.0,0.95480887]
[1744108406524,0.352655,79018.0,78994.0,0.95480887]
[1744108406746,0.02244316,79015.0,78994.0,0.95980887]
[1744108407105,0.0098375,79015.0,79014.0,0.415774]
[1744108407304,0.002,79019.0,79018.0,0.02719585]
[1744108407523,0.00212636,79019.0,79018.0,0.40656049]
[1744108407844,0.00212636,79019.0,79018.0,0.14079949]
[1744108408201,0.34212636,79019.0,79018.0,0.14079949]
[1744108408411,0.60788436,79019.0,79018.0,0.14079949]
[1744108408811,0.62062056,79019.0,79018.0,0.14079949]
[1744108409211,0.62262056,79019.0,79018.0,0.14079949]
[1744108409808,0.62462056,79019.0,79018.0,0.14079949]
[1744108410807,0.62462056,79019.0,79018.0,0.15022811]
[1744108411840,0.62262056,79019.0,79018.0,0.15022811]
[1744108412471,0.62462056,79019.0,79018.0,0.15022811]
[1744108412705,0.62062056,79019.0,79018.0,0.15022811]
[1744108412881,0.62262056,79019.0,79018.0,0.15022811]
[1744108413019,0.62462056,79019.0,79018.0,0.15022811]
[1744108413883,0.62462056,79019.0,79018.0,0.13568726]
[1744108414094,0.62462056,79019.0,79018.0,0.26977864]
[1744108418504,0.62462056,79019.0,79012.0,1.00316]
[1744108418505,0.605778,79013.0,79012.0,1.00316]
[1744108418916,0.352656,79012.0,79011.0,0.14352]
[1744108419633,0.352656,79012.0,79011.0,0.26977864]
[1744108420162,0.012656,79012.0,79011.0,0.26977864]
[1744108421962,0.018656,79012.0,79011.0,0.26977864]
[1744108422122,0.023656,79012.0,79011.0,0.26977864]
[1744108423440,0.023656,79012.0,79011.0,0.12625864]
[1744108427018,0.011,79012.0,79011.0,0.14079949]
[1744108427184,0.351,79012.0,79011.0,0.14079949]
[1744108428031,0.351,79012.0,79011.0,0.15345549]
[1744108428254,0.351,79012.0,79011.0,0.18789949]
[1744108428589,0.011,79012.0,79011.0,0.18789949]
[1744108428795,0.012656,79013.0,79012.0,0.01454085]
[1744108428996,0.012656,79013.0,79012.0,0.14079949]
[1744108429192,0.34,79015.0,79014.0,0.01454085]
[1744108429400,0.34,79015.0,79014.0,0.30345449]
[1744108429844,0.35486256,79019.0,79014.0,0.55657149]
[1744108430047,0.35486256,79019.0,79015.0,0.12625864]
[1744108430265,0.34,79017.0,79015.0,0.12625864]
[1744108431477,0.34,79018.0,79015.0,0.12625864]
[1744108432005,0.002,79017.0,79015.0,0.12625864]
[1744108432782,0.002,79017.0,79016.0,0.012655]
[1744108432985,0.002,79017.0,79016.0,0.13891364]
[1744108433226,0.004,79017.0,79016.0,0.13891364]
[1744108433435,0.004,79017.0,79016.0,0.12625864]
[1744108433592,0.002,79017.0,79016.0,0.12625864]
[1744108434665,0.01486256,79019.0,79017.0,0.01454085]
[1744108434842,0.01486256,79019.0,79018.0,0.14079949]
[1744108435681,0.01786256,79019.0,79018.0,0.14079949]
[1744108435895,0.02186256,79019.0,79018.0,0.14079949]
[1744108436095,0.01886256,79019.0,79018.0,0.14079949]
[1744108436499,0.02186256,79019.0,79018.0,0.14079949]
[1744108436743,0.03451756,79019.0,79018.0,0.14079949]
[1744108437903,0.02186256,79019.0,79018.0,0.15345449]
[1744108438091,0.00912636,79019.0,79018.0,0.20045449]
[1744108438633,0.00512636,79019.0,79018.0,0.18779949]
[1744108438840,0.35478136,79019.0,79018.0,0.18779949]
[1744108439052,0.35678136,79019.0,79018.0,0.18779949]
[1744108439265,0.35578136,79019.0,79018.0,0.14079949]
[1744108439706,0.35778136,79019.0,79018.0,0.14079949]
[1744108442511,0.00512636,79019.0,79018.0,0.14079949]
[1744108442715,0.00512636,79019.0,79018.0,0.15345449]
[1744108442867,0.00512636,79019.0,79018.0,0.20045449]
[1744108444056,0.0129892,79027.0,79018.0,0.20045449]
[1744108444057,2e-07,79027.0,79026.0,0.15]
[1744108444265,0.0098946,79028.0,79027.0,0.12279385]
[1744108444266,8e-07,79028.0,79027.0,0.12279385]
[1744108444602,0.0003362,79029.0,79028.0,0.37586785]
[1744108444800,0.0003362,79029.0,79028.0,0.54157643]
[1744108445361,0.0021681,79049.0,79046.0,0.46455785]
[1744108445551,0.00046294,79047.0,79046.0,0.74678649]
[1744108445755,0.00046294,79047.0,79046.0,0.49376949]
[1744108446688,0.00046294,79047.0,79046.0,0.50328658]
[1744108446839,0.00446294,79047.0,79046.0,0.50328658]
[1744108447635,0.00946294,79047.0,79046.0,0.50328658]
[1744108447881,0.00946294,79047.0,79046.0,0.49063658]
[1744108448359,0.60247694,79047.0,79046.0,0.44363658]
[1744108448558,0.61512694,79047.0,79046.0,0.43411949]
[1744108449001,0.61512694,79047.0,79046.0,0.44383198]
[1744108450261,0.61512694,79047.0,79046.0,0.43411949]
[1744108452903,0.36211294,79047.0,79046.0,0.43411949]
[1744108453063,0.61512694,79047.0,79046.0,0.43411949]
[1744108453268,0.34946294,79047.0,79046.0,0.70920156]
[1744108453970,0.34946294,79047.0,79046.0,0.75730156]
[1744108454532,0.34046294,79047.0,79046.0,0.75730156]
[1744108454775,0.34146294,79047.0,79046.0,0.75730156]
[1744108455180,0.34246294,79047.0,79046.0,0.75730156]
[1744108456138,0.34246294,79047.0,79046.0,0.80710156]
[1744108456340,0.00246294,79047.0,79046.0,0.80710156]
[1744108457197,0.00146294,79047.0,79046.0,0.80710156]
[1744108457629,0.00046294,79047.0,79046.0,0.80910156]
[1744108457797,0.00046294,79047.0,79046.0,0.81010156]
[1744108458206,0.00046294,79047.0,79046.0,0.80910156]
[1744108458614,0.00046294,79047.0,79046.0,0.81210156]
[1744108459003,0.0003366,79052.0,79046.0,0.81210156]
[1744108459004,8.4e-07,79052.0,79051.0,0.01265]
[1744108459258,0.01280238,79058.0,79057.0,0.402982]
[1744108459457,0.012644,79085.0,79067.0,0.465397]
[1744108459647,0.012644,79085.0,79067.0,0.74947649]
[1744108459896,0.012644,79083.0,79067.0,0.74947649]
[1744108460104,0.265555,79080.0,79067.0,0.74947649]
[1744108460271,0.252902,79082.0,79067.0,0.74947649]
[1744108460454,0.012644,79083.0,79067.0,0.75896704]
[1744108460669,0.252906,79081.0,79067.0,0.75896704]
[1744108460992,0.265551,79081.0,79067.0,0.75896704]
[1744108461339,0.2550791,79079.0,79067.0,0.78752033]
[1744108462316,0.2677241,79079.0,79067.0,0.79352033]
[1744108462965,0.3403362,79074.0,79067.0,0.79352033]
[1744108464495,0.0003362,79074.0,79067.0,0.79352033]
[1744108467341,0.0003362,79074.0,79067.0,0.83882033]
[1744108469386,1e-06,79068.0,79067.0,0.83882033]
[1744108470780,1e-06,79068.0,79067.0,0.82427948]
[1744108470981,1e-06,79068.0,79067.0,0.81827948]
[1744108471133,1e-06,79068.0,79067.0,0.41040248]
[1744108471334,1e-06,79068.0,79067.0,0.55900248]
[1744108471679,1e-06,79068.0,79067.0,0.47654948]
[1744108471834,4.31e-05,79068.0,79067.0,0.47654948]
[1744108472398,0.2656361,79068.0,79067.0,0.46390248]
[1744108472604,0.0126901,79068.0,79067.0,0.46390248]
[1744108472797,0.2656361,79068.0,79067.0,0.46390248]
[1744108473079,0.2656361,79068.0,79067.0,0.45890248]
[1744108473237,0.2656361,79068.0,79067.0,0.42934919]
[1744108473437,0.6056361,79068.0,79067.0,0.004]
[1744108473777,0.6056361,79068.0,79067.0,0.14856]
[1744108473981,0.6056361,79068.0,79067.0,0.14956]
[1744108474142,0.6056361,79068.0,79067.0,0.14456]
[1744108474527,0.6056361,79068.0,79067.0,0.14656]
[1744108474768,0.6056361,79068.0,79067.0,0.14556]
[1744108475086,0.6056361,79068.0,79067.0,0.14456]
[1744108476347,0.6056361,79068.0,79067.0,0.14556]
[1744108479932,0.6056361,79068.0,79067.0,0.27181864]
[1744108480678,0.6056361,79068.0,79067.0,0.27081864]
[1744108480913,0.6056361,79068.0,79067.0,0.26981864]
[1744108481157,0.6056361,79068.0,79067.0,0.27181864]
[1744108481587,0.6056361,79068.0,79067.0,0.27081864]
[1744108483911,0.6056361,79068.0,79067.0,0.14456]
[1744108485496,0.6056361,79068.0,79067.0,0.001]
[1744108497009,0.6056361,79068.0,79067.0,1e-06]
[1744108497227,0.352651,79045.0,79041.0,0.5]
[1744108497398,0.352651,79045.0,79044.0,0.19029949]
[1744108497721,0.34,79045.0,79044.0,0.34346937]
[1744108497893,0.352651,79045.0,79044.0,0.34346937]
[1744108498095,0.36304783,79045.0,79044.0,0.34346937]
[1744108498476,0.36304783,79045.0,79044.0,0.26985864]
[1744108498722,0.36304783,79045.0,79044.0,0.27085864]
[1744108500105,0.35039683,79045.0,79044.0,0.27085864]
[1744108500289,0.36304783,79045.0,79044.0,0.27085864]
[1744108501599,0.01039683,79045.0,79044.0,0.53842249]
[1744108501771,0.01039683,79045.0,79044.0,0.30906994]
[1744108502045,0.352651,79045.0,79044.0,0.30906994]
[1744108502717,0.34,79045.0,79044.0,0.32172094]
[1744108503008,0.01005267,79045.0,79044.0,0.35526994]
[1744108503191,0.35005267,79045.0,79044.0,0.35526994]
[1744108503405,0.352651,79045.0,79044.0,0.35526994]
[1744108506075,0.01265,79048.0,79045.0,0.01454085]
[1744108506292,0.34,79048.0,79047.0,0.01454085]
[1744108506496,0.34,79048.0,79047.0,0.14079949]
[1744108507028,0.2629143,79052.0,79047.0,0.43013394]
[1744108507231,0.0099143,79052.0,79049.0,0.01454085]
[1744108507371,0.2755633,79052.0,79051.0,0.01454085]
[1744108507577,0.605649,79052.0,79051.0,0.14079949]
[1744108508211,0.605649,79052.0,79051.0,0.16446994]
[1744108509455,0.607649,79052.0,79051.0,0.16446994]
[1744108509966,0.609649,79052.0,79051.0,0.16446994]
[1744108510307,0.61799485,79052.0,79051.0,0.16446994]
[1744108510683,0.62099485,79052.0,79051.0,0.16446994]
[1744108510894,0.35534585,79052.0,79051.0,0.17711994]
[1744108511690,0.343,79052.0,79051.0,0.22531994]
[1744108511902,0.34,79052.0,79051.0,0.27041994]
[1744108512137,0.341,79052.0,79051.0,0.27041994]
[1744108512561,0.34,79052.0,79051.0,0.28226453]
[1744108512909,0.34,79052.0,79051.0,0.28326453]
[1744108513318,0.342,79052.0,79051.0,0.28326453]
[1744108513495,0.34,79052.0,79051.0,0.28326453]
[1744108514217,0.34,79052.0,79051.0,0.28526453]
[1744108514464,0.34,79052.0,79051.0,0.28726453]
[1744108516435,0.0099917,79059.0,79058.0,0.28016685]
[1744108516715,0.0099917,79059.0,79058.0,0.74814549]
[1744108516918,0.01040495,79062.0,79061.0,0.265617]
[1744108517121,0.3400431,79068.0,79063.0,0.25296]
[1744108517365,0.3400431,79068.0,79064.0,0.12625864]
[1744108517539,4.31e-05,79068.0,79067.0,0.26749085]
[1744108517739,0.0126901,79068.0,79067.0,0.14079949]
[1744108518094,0.2656361,79068.0,79067.0,0.14079949]
[1744108518506,4.31e-05,79068.0,79067.0,0.16446994]
[1744108519121,0.0166901,79068.0,79067.0,0.16446994]
[1744108519295,0.0040431,79068.0,79067.0,0.18644044]
[1744108519503,0.01436525,79068.0,79067.0,0.43939044]
[1744108520083,0.01936525,79068.0,79067.0,0.43939044]
[1744108520298,0.01536525,79068.0,79067.0,0.17379344]
[1744108520512,0.01436525,79068.0,79067.0,0.17379344]
[1744108520727,0.01936525,79068.0,79067.0,0.17379344]
[1744108522382,0.61231125,79068.0,79067.0,0.17379344]
[1744108524153,0.35936525,79068.0,79067.0,0.17379344]
[1744108524352,0.37201225,79068.0,79067.0,0.17379344]
[1744108525989,0.3490431,79068.0,79067.0,0.27974044]
[1744108526216,0.3490431,79068.0,79067.0,0.42974044]
[1744108527088,0.0090431,79068.0,79067.0,0.42974044]
[1744108527846,4.31e-05,79068.0,79067.0,0.42974044]
[1744108528060,4.31e-05,79068.0,79067.0,0.43919183]
[1744108528259,4.31e-05,79068.0,79067.0,0.45200605]
[1744108529431,0.2656361,79068.0,79067.0,0.43835905]
[1744108529604,0.6056361,79068.0,79067.0,0.32106681]
[1744108529835,0.6056361,79068.0,79067.0,0.33860766]
[1744108530043,0.6056361,79068.0,79067.0,0.34060766]
[1744108530192,0.6056361,79068.0,79067.0,0.31425259]
[1744108530395,0.6056361,79068.0,79067.0,0.31125259]
[1744108530603,0.6056361,79068.0,79067.0,0.32579344]
[1744108530809,0.6056361,79068.0,79067.0,0.32379344]
[1744108531010,0.6066361,79068.0,79067.0,0.32379344]
[1744108532101,0.62245751,79068.0,79067.0,0.32379344]
[1744108533020,0.62245751,79068.0,79067.0,0.46703344]
[1744108548878,0.62245751,79068.0,79067.0,0.31703344]
[1744108553938,0.35686451,79068.0,79067.0,0.77873044]
[1744108554150,0.35686451,79068.0,79067.0,0.78820742]
[1744108554368,0.01686451,79068.0,79067.0,0.83780742]
[1744108554851,0.01686451,79068.0,79067.0,0.84965225]
[1744108554852,0.0010431,79068.0,79067.0,0.84965225]
[1744108555032,4.31e-05,79068.0,79067.0,0.85165225]
[1744108555158,4.31e-05,79068.0,79067.0,0.85265225]
[1744108555378,4.31e-05,79068.0,79067.0,0.85165225]
[1744108556083,4.31e-05,79068.0,79067.0,0.84965225]
[1744108556572,4.31e-05,79068.0,79067.0,0.85165225]
[1744108557028,4.31e-05,79068.0,79067.0,0.85265225]
[1744108557456,4.31e-05,79068.0,79067.0,0.85165225]
[1744108557673,4.31e-05,79068.0,79067.0,0.85465225]
[1744108558154,4.31e-05,79068.0,79067.0,1.27505225]
[1744108558427,0.000168,79072.0,79071.0,0.265583]
[1744108558653,0.00058901,79072.0,79071.0,0.49808249]
[1744108558884,0.00058901,79072.0,79071.0,0.54937823]
[1744108559123,0.00058901,79072.0,79071.0,0.54307475]
[1744108559771,0.00058901,79072.0,79071.0,0.54707475]
[1744108560985,0.00058901,79072.0,79071.0,0.55107475]
[1744108562595,0.00058901,79072.0,79071.0,0.96547475]
[1744108562813,0.00058901,79072.0,79071.0,1.00486978]
[1744108563988,0.00058901,79072.0,79071.0,1.00086978]
[1744108564242,0.0003362,79074.0,79071.0,1.00086978]
[1744108564243,2.1e-07,79074.0,79073.0,0.265576]
[1744108564413,0.0003362,79076.0,79075.0,0.41557]
[1744108564565,0.0003362,79076.0,79075.0,0.64806949]
[1744108564768,0.0003362,79076.0,79075.0,0.70874933]
[1744108565772,0.0003362,79076.0,79075.0,0.74141978]
[1744108566164,0.0003362,79076.0,79075.0,1.15581978]
[1744108566620,0.0003362,79092.0,79091.0,0.415516]
[1744108566851,0.0003362,79092.0,79091.0,0.64801549]
[1744108566852,2e-07,79092.0,79091.0,0.64801549]
[1744108567037,1e-06,79104.0,79103.0,0.26737485]
[1744108567284,0.00012725,79104.0,79103.0,0.49797449]
[1744108567492,0.00012725,79104.0,79103.0,0.52164494]
[1744108567936,0.00012725,79104.0,79103.0,0.53112192]
[1744108568143,0.00012725,79104.0,79103.0,0.54296675]
[1744108568352,2.5e-07,79104.0,79103.0,0.97102843]
[1744108568587,0.002,79109.0,79108.0,0.47549885]
[1744108568795,0.002,79109.0,79108.0,1.20555749]
[1744108568982,0.002,79109.0,79108.0,1.21740232]
[1744108569402,0.002,79109.0,79108.0,1.2268793]
[1744108569642,0.002,79109.0,79108.0,1.25054975]
[1744108570262,0.002,79109.0,79108.0,1.25954975]
[1744108570894,0.002,79109.0,79108.0,1.11634975]
[1744108571101,0.002,79109.0,79108.0,1.25003277]
[1744108571513,0.002,79109.0,79108.0,1.25903277]
[1744108572206,0.002,79109.0,79108.0,1.25003277]
[1744108572621,0.002,79109.0,79108.0,1.25903277]
[1744108572825,0.002,79109.0,79108.0,1.26842916]
[1744108573868,0.002,79109.0,79108.0,1.25903277]
[1744108574715,0.002,79109.0,79108.0,1.24718794]
[1744108576125,0.002,79109.0,79108.0,0.82402909]
[1744108576306,0.002,79109.0,79108.0,1.23260709]
[1744108576565,0.002,79109.0,79108.0,0.87544909]
[1744108576797,0.607455,79109.0,79108.0,0.16792909]
[1744108577019,0.6752885,79109.0,79108.0,0.14425864]
[1744108577318,0.61886634,79109.0,79108.0,0.018]
[1744108577777,0.605499,79096.0,79095.0,0.14312]
[1744108578001,0.605499,79096.0,79095.0,0.26950489]
[1744108578251,0.61694922,79096.0,79095.0,0.27914238]
[1744108578694,0.61694922,79096.0,79095.0,0.29368323]
[1744108579839,0.35245022,79096.0,79095.0,0.28404574]
[1744108580059,0.35245022,79096.0,79095.0,0.29668874]
[1744108580304,0.35345022,79096.0,79095.0,0.29668874]
[1744108580551,0.341,79096.0,79095.0,0.30603663]
[1744108580787,0.001,79096.0,79095.0,0.30603663]
[1744108581250,0.0098799,79103.0,79101.0,0.01454085]
[1744108581251,0.352641,79102.0,79101.0,0.01454085]
[1744108581464,0.36331239,79102.0,79101.0,0.14079949]
[1744108581717,0.35067139,79102.0,79101.0,0.14079949]
[1744108581931,0.35135691,79102.0,79101.0,0.14079949]
[1744108582383,0.36399791,79102.0,79101.0,0.14079949]
[1744108582823,0.36399791,79102.0,79101.0,0.28395949]
[1744108584162,0.36599791,79102.0,79101.0,0.28395949]
[1744108584385,0.36699791,79102.0,79101.0,0.28395949]
[1744108585108,0.36699791,79102.0,79101.0,0.26941864]
[1744108585580,0.36699791,79102.0,79101.0,0.28395949]
[1744108585581,0.01435691,79102.0,79101.0,0.28395949]
[1744108586018,0.01435691,79102.0,79101.0,0.29660149]
[1744108587375,0.01235691,79102.0,79101.0,0.29660149]
[1744108587589,0.01135691,79102.0,79101.0,0.29660149]
[1744108587805,0.01235691,79102.0,79101.0,0.29660149]
[1744108588022,0.01235691,79102.0,79101.0,0.28395949]
[1744108588450,0.01235691,79102.0,79101.0,0.29660149]
[1744108588676,0.01235691,79102.0,79101.0,0.29760149]
[1744108588867,0.001,79102.0,79101.0,0.29760149]
[1744108589541,0.001,79102.0,79101.0,0.28495949]
[1744108589998,0.01228528,79102.0,79101.0,0.28495949]
[1744108590228,0.001,79102.0,79101.0,0.28495949]
[1744108590788,0.001,79102.0,79101.0,0.29760149]
[1744108591012,0.01228528,79102.0,79101.0,0.28495949]
[1744108591233,0.001,79102.0,79101.0,0.28495949]
[1744108591463,0.01228528,79102.0,79101.0,0.28495949]
[1744108591967,0.01228528,79102.0,79101.0,0.29760149]
[1744108592387,0.001,79102.0,79101.0,0.29760149]
[1744108594015,0.01236147,79102.0,79101.0,0.29760149]
[1744108594222,0.001,79102.0,79101.0,0.29760149]
[1744108594440,0.01236098,79102.0,79101.0,0.29760149]
[1744108594668,0.001,79102.0,79101.0,0.29760149]
[1744108594887,0.001,79102.0,79101.0,0.71200149]
[1744108594888,0.01236098,79102.0,79101.0,0.71200149]
[1744108595103,0.0118032,79109.0,79108.0,0.461558]
[1744108595340,0.17121905,79140.0,79126.0,0.415399]
[1744108595537,0.0098528,79132.0,79126.0,0.70359849]
[1744108595962,0.3401679,79136.0,79126.0,0.70359849]
[1744108596175,0.012636,79133.0,79126.0,0.70359849]
[1744108596358,0.34,79132.0,79126.0,0.70359849]
[1744108596771,0.01153477,79127.0,79126.0,0.70359849]
[1744108597006,0.0001681,79127.0,79126.0,0.70359849]
[1744108597154,0.01155258,79127.0,79126.0,0.70359849]
[1744108597431,0.0001681,79127.0,79126.0,0.70359849]
[1744108597637,0.0001681,79127.0,79126.0,0.43919949]
[1744108598329,0.0001681,79127.0,79126.0,0.44119949]
[1744108598550,0.0001681,79127.0,79126.0,0.45383749]
[1744108598767,0.0001681,79127.0,79126.0,0.45183749]
[1744108598964,0.01155419,79127.0,79126.0,0.45283749]
[1744108599135,0.0001681,79127.0,79126.0,0.45283749]
[1744108599337,0.01167091,79127.0,79126.0,0.45283749]
[1744108599548,0.0001681,79127.0,79126.0,0.45283749]
[1744108599779,0.01167091,79127.0,79126.0,0.45283749]
[1744108599945,0.0001681,79127.0,79126.0,0.44019949]
[1744108600165,0.01167091,79127.0,79126.0,0.44019949]
[1744108600370,0.0001681,79127.0,79126.0,0.45283749]
[1744108601278,0.0001681,79127.0,79126.0,0.46209847]
[1744108601751,0.01167091,79127.0,79126.0,0.46209847]
[1744108601961,0.0001681,79127.0,79126.0,0.44946047]
[1744108602165,0.01167091,79127.0,79126.0,0.44946047]
[1744108602385,0.0001681,79127.0,79126.0,0.46209847]
[1744108602589,0.01167091,79127.0,79126.0,0.46209847]
[1744108602811,0.0001681,79127.0,79126.0,0.46209847]
[1744108603013,0.01167091,79127.0,79126.0,0.46209847]
[1744108603221,0.0001681,79127.0,79126.0,0.46209847]
[1744108603491,0.01167091,79127.0,79126.0,0.46209847]
[1744108605100,0.02430791,79127.0,79126.0,0.28751962]
[1744108605310,0.02430791,79127.0,79126.0,0.12825864]
[1744108605311,0.36430791,79127.0,79126.0,0.12825864]
[1744108605507,0.36430791,79127.0,79126.0,0.002]
[1744108606241,0.605432,79116.0,79115.0,0.14736]
[1744108606397,0.605432,79116.0,79115.0,0.27361864]
[1744108606608,0.6169821,79116.0,79115.0,0.27361864]
[1744108606821,0.6169821,79116.0,79115.0,0.12625864]
[1744108607227,0.6169821,79116.0,79108.0,0.1131033]
[1744108607228,0.605455,79109.0,79108.0,0.1131033]
[1744108607472,0.61693267,79109.0,79108.0,0.23936194]
[1744108608511,0.61693267,79109.0,79108.0,0.12625864]
[1744108608512,0.66313267,79109.0,79108.0,0.12625864]
[1744108608727,0.605496,79097.0,79096.0,0.1474]
[1744108608946,0.61694549,79097.0,79096.0,0.27378489]
[1744108609580,0.61694549,79097.0,79096.0,0.12638489]
[1744108610246,0.64046724,79097.0,79096.0,0.12638489]
[1744108610886,0.64246724,79097.0,79096.0,0.12638489]
[1744108611093,0.64446724,79097.0,79096.0,0.12638489]
[1744108616490,0.64446724,79097.0,79096.0,0.00012625]
[1744108616841,0.73796724,79097.0,79096.0,2.5e-07]
[1744108617060,0.82196736,79097.0,79096.0,2.5e-07]
[1744108617272,0.34,79079.0,79078.0,0.1474]
[1744108617485,0.352645,79079.0,79078.0,0.27365864]
[1744108617720,0.36389005,79079.0,79078.0,0.27365864]
[1744108617933,0.35124505,79079.0,79078.0,0.27365864]
[1744108618143,0.61680105,79079.0,79078.0,0.27365864]
[1744108618911,0.61780105,79079.0,79078.0,0.28065864]
[1744108619322,0.61880105,79079.0,79078.0,0.28765864]
[1744108619908,0.61780105,79079.0,79078.0,0.28065864]
[1744108620110,0.61680105,79079.0,79078.0,0.27765864]
[1744108620539,0.61680105,79079.0,79078.0,0.28165864]
[1744108621547,0.01124505,79079.0,79078.0,0.29619949]
[1744108621960,0.252911,79079.0,79078.0,0.29619949]
[1744108622195,0.26415605,79079.0,79078.0,0.29619949]
[1744108622398,0.61680105,79079.0,79078.0,0.29619949]
[1744108627125,0.61680105,79079.0,79078.0,0.28165864]
[1744108633453,0.35124505,79079.0,79078.0,0.30884449]
[1744108633672,0.35124505,79079.0,79078.0,0.54911349]
[1744108633872,0.35124505,79079.0,79078.0,0.56175849]
[1744108634308,0.01124505,79079.0,79078.0,0.60945849]
[1744108634723,0.01128425,79092.0,79088.0,0.012644]
[1744108634977,0.01128425,79092.0,79089.0,0.14079949]
[1744108635209,0.01111562,79091.0,79089.0,0.39367749]
[1744108635414,0.35111562,79091.0,79089.0,0.14079949]
[1744108635623,0.34,79091.0,79090.0,0.06224085]
[1744108635831,0.34,79091.0,79090.0,0.18849949]
[1744108636044,0.351114,79091.0,79090.0,0.18849949]
[1744108636754,0.353114,79091.0,79090.0,0.18849949]
[1744108637178,0.365757,79091.0,79090.0,0.18849949]
[1744108637828,0.365757,79091.0,79090.0,0.12625864]
[1744108638226,0.38935876,79091.0,79090.0,0.12625864]
[1744108638788,0.39135876,79091.0,79090.0,0.12625864]
[1744108641766,0.4031619,79091.0,79090.0,0.12625864]
[1744108641968,0.4031619,79091.0,79078.0,0.1474]
[1744108641969,0.605556,79079.0,79078.0,0.1474]
[1744108642173,0.605556,79079.0,79078.0,0.28327264]
[1744108642374,0.61669689,79079.0,79078.0,0.13587264]
[1744108642550,0.61669689,79079.0,79078.0,0.28299264]
[1744108642771,0.62849533,79079.0,79078.0,0.28299264]
[1744108642970,0.62849533,79079.0,79078.0,0.28699264]
[1744108643529,0.61669689,79079.0,79078.0,0.28699264]
[1744108643733,0.61669689,79079.0,79078.0,0.29099264]
[1744108651095,0.61669689,79079.0,79078.0,0.13425864]
[1744108651303,0.64032044,79079.0,79078.0,0.008]
[1744108651954,0.64032044,79079.0,79069.0,0.0003356]
[1744108651955,0.605587,79070.0,79069.0,0.0003356]
[1744108652160,0.652487,79070.0,79069.0,0.0003356]
[1744108652422,0.67296961,79070.0,79069.0,0.0003356]
[1744108652648,0.62606961,79070.0,79069.0,0.0003356]
[1744108653170,0.62062298,79070.0,79069.0,0.0003356]
[1744108653385,0.64424653,79070.0,79069.0,0.0003356]
[1744108654649,0.64824653,79070.0,79069.0,0.0003356]
[1744108660653,0.39530653,79070.0,79069.0,0.12659424]
[1744108661089,0.37168298,79070.0,79069.0,0.12659424]
[1744108661754,0.36368298,79070.0,79069.0,0.12659424]
[1744108661970,0.36468298,79070.0,79069.0,0.12659424]
[1744108662930,0.36868298,79070.0,79069.0,0.12659424]
[1744108663658,0.36768298,79070.0,79069.0,0.12659424]
[1744108664079,0.37168298,79070.0,79069.0,0.12659424]
[1744108669421,0.36768298,79070.0,79069.0,0.12659424]
[1744108669794,0.37168298,79070.0,79069.0,0.12659424]
[1744108670697,0.36768298,79070.0,79069.0,0.12659424]
[1744108671146,0.37168298,79070.0,79069.0,0.12659424]
[1744108672724,0.37168298,79070.0,79069.0,0.17459424]
[1744108674459,0.37168298,79070.0,79069.0,0.12659424]
[1744108677350,0.37168298,79070.0,79069.0,0.0003356]
[1744108677679,0.39525159,79070.0,79069.0,0.0003356]
[1744108679723,0.39125159,79070.0,79069.0,0.0003356]
[1744108680277,0.39725159,79070.0,79069.0,0.0013356]
[1744108680481,0.39325159,79070.0,79069.0,0.0013356]
[1744108681327,0.39825159,79070.0,79069.0,0.0013356]
[1744108683505,0.39825159,79070.0,79069.0,0.12759424]
[1744108685566,0.37468298,79070.0,79069.0,0.12759424]
[1744108692899,0.62762298,79070.0,79069.0,0.12759424]
[1744108694427,0.36203598,79070.0,79069.0,0.39507809]